bitfinex-derivatives/quotes_SOLF0:USTF0_20260105
["timestamp","ask_amount","ask_price","bid_price","bid_amount"]
[1767579312509,1.48023156,136.82,136.78,0.05355727]
[1767579313004,1.48023156,136.82,136.73,9.12564889]
[1767579313500,1.48023156,136.82,136.74,7.64491733]
[1767579316203,6.5808,136.83,136.75,1.06041733]
[1767579317307,6.5811,136.82,136.75,1.06041733]
[1767579319010,8.06183156,136.81,136.72,1.06041733]
[1767579319215,86.38,136.8,136.72,1.06041733]
[1767579321816,1.48023156,136.79,136.7,2.54064889]
[1767579322116,1.48023156,136.79,136.7,1.06041733]
[1767579322815,8.06293156,136.79,136.7,1.06041733]
[1767579323210,1.48023156,136.77,136.7,1.06041733]
[1767579324315,8.06383156,136.77,136.7,1.06041733]
[1767579325216,8.06383156,136.77,136.68,1.06041733]
[1767579325612,1.48023156,136.75,136.68,1.06041733]
[1767579327416,8.06283156,136.79,136.7,1.06041733]
[1767579327617,8.06283156,136.79,136.7,1.1098332]
[1767579327827,8.06283156,136.79,136.7,1.06041733]
[1767579328627,86.38,136.8,136.71,1.06041733]
[1767579328827,86.38,136.8,136.72,1.06041733]
[1767579329030,86.38,136.8,136.73,1.11643972]
[1767579337531,86.38,136.8,136.73,2.59667128]
[1767579338728,8.06093156,136.83,136.74,1.08221819]
[1767579339025,94.44093156,136.83,136.74,2.56244975]
[1767579339630,94.44093156,136.83,136.77,0.05062863]
[1767579341034,1.48023156,136.79,136.71,14.65593629]
[1767579341234,1.48023156,136.79,136.71,1.08221819]
[1767579341434,188.7491,136.83,136.71,1.08221819]
[1767579341734,1.48023156,136.78,136.71,1.08221819]
[1767579342334,87.86023156,136.78,136.7,1.08221819]
[1767579342538,87.86023156,136.78,136.7,7.66871819]
[1767579343632,87.86023156,136.78,136.7,1.08221819]
[1767579344135,1.48023156,136.76,136.68,9.14974975]
[1767579344340,1.48023156,136.76,136.69,1.08221819]
[1767579345438,1.48023156,136.76,136.69,7.66921819]
[1767579346341,6.5821,136.8,136.71,1.08221819]
[1767579346644,87.86023156,136.79,136.71,1.08221819]
[1767579350640,87.86023156,136.79,136.68,7.66971819]
[1767579350641,2.31259435,136.78,136.68,7.66971819]
[1767579351744,6.5835,136.77,136.68,7.66971819]
[1767579355947,6.5835,136.77,136.69,1.08221819]
[1767579356243,92.9835,136.77,136.69,1.08221819]
[1767579357846,2.31259435,136.81,136.7,1.08221819]
[1767579358643,8.89429435,136.81,136.72,6.5855]
[1767579359841,2.31259435,136.83,136.74,1.08238486]
[1767579360040,86.4,136.86,136.77,1.08238486]
[1767579361251,88.71259435,136.86,136.77,1.08238486]
[1767579362251,86.4,136.86,136.79,1.15985628]
[1767579364656,19.12308012,136.89,136.79,1.15985628]
[1767579364953,86.38,136.89,136.81,1.15985628]
[1767579365851,86.38,136.89,136.82,1.15985628]
[1767579369360,2.31259435,136.92,136.82,1.15985628]
[1767579369561,88.67259435,136.92,136.82,7.74045628]
[1767579370152,88.67259435,136.92,136.84,1.15985628]
[1767579370358,86.36,136.92,136.84,1.15985628]
[1767579371460,8.88679435,136.96,136.85,1.15985628]
[1767579371769,86.36,136.95,136.85,1.15985628]
[1767579376467,92.9349,136.95,136.85,1.15985628]
[1767579377666,2.31259435,136.94,136.85,1.15985628]
[1767579379367,8.88799435,136.94,136.85,1.15985628]
[1767579379971,2.31259435,136.92,136.82,7.74055628]
[1767579381576,104.61079435,136.92,136.82,1.15985628]
[1767579382573,6.5773,136.9,136.82,1.15985628]
[1767579382767,92.8973,136.9,136.82,1.15985628]
[1767579385877,102.2833,136.94,136.82,1.15985628]
[1767579386086,86.32,136.95,136.86,1.15985628]
[1767579388583,95.20759435,136.95,136.86,1.15985628]
[1767579393083,6.5738,136.97,136.87,1.17629287]
[1767579393283,86.3,136.96,136.87,1.17629287]
[1767579394586,86.3,136.96,136.87,7.75429287]
[1767579395283,2.31259435,136.93,136.82,1.17629287]
[1767579395595,2.31259435,136.91,136.82,1.17629287]
[1767579395782,2.31259435,136.91,136.83,1.17629287]
[1767579396091,88.61259435,136.92,136.83,1.17629287]
[1767579396688,0.04776695,136.89,136.83,1.17629287]
[1767579411787,0.04776695,136.89,136.83,7.75649287]
[1767579411991,86.32,136.91,136.84,1.11511553]
[1767579412599,87.7968579,136.91,136.84,1.11511553]
[1767579413303,87.7968579,136.91,136.86,0.05060561]
[1767579413496,86.32,136.91,136.86,0.05060561]
[1767579413804,87.7968579,136.91,136.86,0.05060561]
[1767579415502,1.4768579,136.89,136.86,0.05060561]
[1767579415708,1.4768579,136.89,136.82,1.11511553]
[1767579416096,1.4768579,136.87,136.82,1.11511553]
[1767579420212,86.32,136.91,136.82,1.11511553]
[1767579420406,1.4768579,136.9,136.82,1.11511553]
[1767579420904,87.7968579,136.91,136.82,1.11511553]
[1767579421113,6.5754,136.94,136.85,1.11593308]
[1767579421404,1.4768579,136.93,136.85,1.11593308]
[1767579422714,1.4768579,136.93,136.86,1.11593308]
[1767579426312,1.4768579,136.93,136.86,7.69473308]
[1767579426514,1.4768579,136.93,136.87,1.11593308]
[1767579426713,92.8925,137.0,136.89,1.11593308]
[1767579427021,1.4768579,136.95,136.88,1.11593308]
[1767579427312,1.4768579,136.93,136.86,1.11593308]
[1767579427513,1.4768579,136.91,136.86,1.11593308]
[1767579429821,1.4768579,136.91,136.84,94.01563308]
[1767579430022,1.4768579,136.91,136.85,1.11593308]
[1767579432934,1.4768579,136.93,136.85,1.11593308]
[1767579436531,87.7968579,136.95,136.86,2.59279098]
[1767579436718,87.7968579,136.95,136.87,1.11593308]
[1767579437816,0.04614033,136.92,136.87,1.11593308]
[1767579440323,1.4768579,136.97,136.89,1.11593308]
[1767579440720,86.3,136.98,136.89,1.11593308]
[1767579441523,86.3,136.98,136.92,0.05056088]
[1767579442426,87.7768579,136.98,136.92,0.05056088]
[1767579444728,1.4768579,136.98,136.92,0.05056088]
[1767579444929,87.7768579,136.98,136.92,0.05056088]
[1767579448030,1.4768579,136.94,136.86,1.11593308]
[1767579448426,87.7768579,136.94,136.86,1.11593308]
[1767579449338,0.04671579,136.91,136.86,1.11593308]
[1767579450231,94.3508579,136.97,136.88,1.11593308]
[1767579450432,1.4768579,136.95,136.88,1.11593308]
[1767579450735,1.4768579,136.94,136.88,1.11593308]
[1767579451632,1.4768579,136.94,136.9,0.05215305]
[1767579452230,1.4768579,136.96,136.9,0.05215305]
[1767579453437,8.0511579,136.96,136.9,0.05215305]
[1767579454435,1.4768579,136.94,136.9,0.05215305]
[1767579454635,1.4768579,136.92,136.85,7.72955207]
[1767579454935,1.4768579,136.92,136.86,1.15045207]
[1767579455135,1.4768579,136.94,136.86,1.15045207]
[1767579455438,8.0521579,136.94,136.86,7.72925207]
[1767579456040,0.05010033,136.91,136.86,7.72925207]
[1767579457137,8.0521579,136.94,136.86,7.72925207]
[1767579457334,1.4768579,136.94,136.87,0.05276802]
[1767579460441,1.4768579,136.94,136.87,1.20471798]
[1767579461548,1.4768579,136.94,136.87,7.78301798]
[1767579463146,1.4768579,136.94,136.88,1.15194996]
[1767579469050,92.8739,136.97,136.88,1.15194996]
[1767579469244,1.4768579,136.96,136.88,1.15194996]
[1767579470053,8.0511579,136.96,136.88,1.15194996]
[1767579470550,6.5736,136.98,136.91,0.05065036]
[1767579470754,8.0504579,136.98,136.91,1.20260032]
[1767579470949,1.4768579,136.98,136.91,1.20260032]
[1767579471146,102.1988,137.05,136.94,1.15194996]
[1767579471350,1.4768579,137.01,136.94,1.15194996]
[1767579471655,1.4768579,137.01,136.92,1.15194996]
[1767579471948,8.0488579,137.01,136.96,0.0532451]
[1767579472451,1.4768579,136.99,136.96,0.0532451]
[1767579472644,1.4768579,136.99,136.91,1.15194996]
[1767579472850,0.05424034,137.0,136.93,1.15194996]
[1767579473054,1.4768579,137.02,136.93,1.15194996]
[1767579473355,86.3,137.04,136.92,15.050576]
[1767579473356,1.4768579,137.03,136.95,1.15194996]
[1767579474056,0.04965057,137.0,136.95,1.15194996]
[1767579475545,6.5706,137.04,136.96,1.15194996]
[1767579475751,6.5706,137.04,136.96,1.20022064]
[1767579476957,86.28,137.05,136.97,1.15194996]
[1767579477361,86.28,137.06,136.97,1.15194996]
[1767579477561,6.5701,137.05,136.97,1.15194996]
[1767579478959,6.5706,137.04,136.96,1.15194996]
[1767579480355,2.30339886,137.02,136.91,1.15194996]
[1767579480662,86.26,137.01,136.91,1.15194996]
[1767579480861,86.26,137.01,136.92,1.20623111]
[1767579481459,8.87489886,137.02,136.93,1.20623111]
[1767579481661,86.26,137.01,136.93,1.20623111]
[1767579482254,92.832,137.01,136.92,6.5759]
[1767579482457,92.832,137.01,136.9,1.20623111]
[1767579482458,2.30339886,137.0,136.9,1.20623111]
[1767579482761,8.87679886,136.98,136.9,1.20623111]
[1767579486470,6.5734,136.98,136.9,1.20623111]
[1767579489176,0.04741611,136.95,136.93,0.04877712]
[1767579492085,6.5734,136.98,136.93,0.04877712]
[1767579495384,6.5739,136.97,136.93,0.04877712]
[1767579495688,86.28,136.96,136.87,1.20623111]
[1767579496087,86.28,136.96,136.88,1.20623111]
[1767579496488,88.58339886,136.96,136.86,1.20623111]
[1767579497002,6.5755,136.94,136.86,1.20623111]
[1767579497190,88.58339886,136.96,136.9,0.04938307]
[1767579497586,6.5748,136.95,136.9,0.04938307]
[1767579499189,102.2546,136.98,136.9,0.04938307]
[1767579499491,2.30339886,136.97,136.9,0.04938307]
[1767579499791,86.28,136.96,136.9,0.04938307]
[1767579500492,2.30339886,136.97,136.9,0.04938307]
[1767579500787,2.30339886,136.95,136.9,0.04938307]
[1767579500978,2.30339886,136.95,136.86,1.20623111]
[1767579501182,6.5753,136.94,136.86,1.20623111]
[1767579502090,2.30339886,136.95,136.86,7.78503111]
[1767579502397,0.04664634,136.91,136.86,7.78503111]
[1767579502794,0.04664634,136.91,136.86,1.20623111]
[1767579506293,0.04664634,136.91,136.86,7.78483111]
[1767579506494,2.30339886,136.95,136.87,1.20623111]
[1767579507193,86.28,136.96,136.87,1.20623111]
[1767579507690,86.28,136.96,136.87,6.5782]
[1767579507885,86.28,136.98,136.88,1.20623111]
[1767579508687,6.574,136.97,136.89,1.20623111]
[1767579510591,102.2681,136.96,136.86,14.77793634]
[1767579510893,2.30339886,136.95,136.86,1.20421824]
[1767579511094,86.28,136.94,136.86,1.20421824]
[1767579511584,92.8556,136.94,136.86,1.20421824]
[1767579512298,92.8556,136.94,136.84,6.5797]
[1767579512299,2.30339886,136.93,136.84,1.20421824]
[1767579513691,6.5768,136.91,136.84,1.20421824]
[1767579517392,6.5777,136.89,136.81,1.09997727]
[1767579517589,86.3,136.9,136.81,1.09997727]
[1767579518712,86.3,136.9,136.82,1.09997727]
[1767579519403,92.8772,136.9,136.82,1.09997727]
[1767579519601,2.30339886,136.89,136.8,1.09997727]
[1767579520697,8.88119886,136.89,136.8,1.09997727]
[1767579521401,6.5778,136.89,136.8,1.09997727]
[1767579521597,86.3,136.9,136.81,1.09997727]
[1767579522703,86.3,136.9,136.82,1.09997727]
[1767579523998,6.5759,136.93,136.83,1.09997727]
[1767579524204,86.32,136.93,136.83,3.40337613]
[1767579524509,86.32,136.93,136.84,1.09997727]
[1767579525605,86.32,136.93,136.85,1.09997727]
[1767579531202,6.5739,136.97,136.87,1.09997727]
[1767579531408,92.8939,136.97,136.87,1.09997727]
[1767579532104,6.5743,136.96,136.87,7.67827727]
[1767579532795,6.5749,136.95,136.87,1.09997727]
[1767579533509,6.5749,136.95,136.85,1.09997727]
[1767579533510,102.2749,136.95,136.85,1.09997727]
[1767579533814,104.57829886,136.95,136.85,1.09997727]
[1767579534600,104.57829886,136.95,136.83,20.1539181]
[1767579534601,1.47667318,136.93,136.83,7.68017727]
[1767579534808,86.3,136.92,136.83,7.68017727]
[1767579535611,92.8763,136.92,136.83,7.68017727]
[1767579536114,86.3,136.92,136.85,1.09997727]
[1767579536803,86.3,136.92,136.85,7.67927727]
[1767579536999,86.3,136.92,136.85,1.09997727]
[1767579537911,86.3,136.92,136.86,6.5788]
[1767579538812,86.3,136.92,136.86,7.67877727]
[1767579540614,1.47667318,136.93,136.86,7.67877727]
[1767579541214,94.35147318,136.95,136.86,7.67877727]
[1767579543414,92.8748,136.95,136.86,7.67877727]
[1767579543620,1.47667318,136.94,136.86,7.67877727]
[1767579544317,8.05197318,136.94,136.86,1.09997727]
[1767579544513,1.47667318,136.92,136.84,7.77472414]
[1767579545716,1.47667318,136.92,136.85,1.19512414]
[1767579548320,8.05297318,136.92,136.82,22.82621542]
[1767579548524,1.47667318,136.9,136.82,9.25249732]
[1767579549116,1.47667318,136.88,136.8,107.67054224]
[1767579549321,1.47667318,136.88,136.8,94.09682414]
[1767579550221,1.47667318,136.88,136.8,7.77682414]
[1767579551315,1.47667318,136.86,136.78,200.5951537]
[1767579553822,1.47667318,136.84,136.78,1.19512414]
[1767579556922,6.5807,136.83,136.74,20.1582181]
[1767579557130,1.47667318,136.82,136.74,7.77962414]
[1767579557321,1.47667318,136.82,136.75,1.19512414]
[1767579558027,1.47667318,136.84,136.75,1.19512414]
[1767579559124,8.05677318,136.84,136.75,1.19512414]
[1767579560825,1.47667318,136.78,136.72,1.19512414]
[1767579563625,1.78069915,136.89,136.79,1.19512414]
[1767579563821,1.78069915,136.89,136.77,103.87877318]
[1767579563822,1.78069915,136.89,136.8,2.67179732]
[1767579565727,0.3099059,136.88,136.8,2.67179732]
[1767579569132,0.3099059,136.88,136.8,1.19512414]
[1767579569336,0.32129004,136.86,136.8,1.19512414]
[1767579575430,0.34047648,136.83,136.74,1.16625404]
[1767579575634,0.34047648,136.83,136.77,1.16122654]
[1767579575839,0.34463917,136.85,136.77,1.16122654]
[1767579578846,0.35204452,136.83,136.77,1.16122654]
[1767579579546,1.83112667,136.85,136.77,1.16122654]
[1767579579936,0.35445349,136.85,136.77,1.16122654]
[1767579580333,6.93415349,136.85,136.77,1.16122654]
[1767579581242,0.35445349,136.85,136.77,1.16122654]
[1767579581447,86.34,136.86,136.79,1.16122654]
[1767579581645,86.69920791,136.86,136.79,1.16122654]
[1767579581946,0.35920791,136.85,136.79,1.16122654]
[1767579586559,0.35920791,136.85,136.81,0.05566392]
[1767579587858,86.34,136.86,136.81,1.21689046]
[1767579588157,0.37279554,136.89,136.81,1.21689046]
[1767579588359,87.83667318,136.9,136.83,1.16122654]
[1767579589158,94.41387318,136.9,136.83,1.16122654]
[1767579589765,92.9372,136.9,136.83,1.16122654]
[1767579591664,93.31851286,136.9,136.83,1.16122654]
[1767579594555,1.86412479,136.91,136.83,1.16122654]
[1767579594756,88.20412479,136.91,136.83,1.16122654]
[1767579596263,0.39142484,136.9,136.86,0.04648433]
[1767579596659,0.0527791,136.89,136.83,1.16122654]
[1767579611874,0.41812017,136.88,136.81,1.15572077]
[1767579612576,0.05455499,136.86,136.81,1.15572077]
[1767579614477,0.42304396,136.84,136.77,1.15572077]
[1767579614780,0.42304396,136.82,136.74,1.15572077]
[1767579615480,0.05030436,136.79,136.74,1.15572077]
[1767579616678,0.05030436,136.79,136.75,1.15572077]
[1767579617072,0.05030436,136.79,136.73,1.15572077]
[1767579618786,2.78740259,136.79,136.73,1.15572077]
[1767579619083,9.37000259,136.79,136.73,1.15572077]
[1767579619381,0.4309036,136.78,136.7,1.15572077]
[1767579620275,0.04997476,136.75,136.7,1.15572077]
[1767579621384,0.48391268,136.8,136.7,1.15572077]
[1767579622371,7.06601268,136.8,136.7,1.15572077]
[1767579622872,7.06601268,136.8,136.74,0.04674187]
[1767579628991,7.06601268,136.8,136.74,1.20246264]
[1767579630694,0.50011938,136.79,136.74,0.04674187]
[1767579632787,7.08271938,136.79,136.74,0.04674187]
[1767579632992,7.08271938,136.79,136.72,1.19544635]
[1767579633291,0.05303852,136.78,136.72,1.19544635]
[1767579637093,7.14613223,136.78,136.72,1.19544635]
[1767579637594,0.51120949,136.76,136.7,1.23232428]
[1767579637898,0.51120949,136.76,136.68,1.23232428]
[1767579638389,0.04661585,136.73,136.68,1.23232428]
[1767579639499,0.56037485,136.8,136.73,1.23232428]
[1767579640588,6.5825,136.79,136.73,1.23232428]
[1767579641196,6.5825,136.79,136.75,0.04663047]
[1767579641396,6.5816,136.81,136.75,1.27895475]
[1767579644103,0.56572128,136.8,136.75,0.04663047]
[1767579644599,7.14782128,136.8,136.75,0.04663047]
[1767579644809,7.14782128,136.8,136.73,1.23232428]
[1767579645007,0.05171741,136.79,136.73,1.23232428]
[1767579646906,92.9611,136.82,136.73,1.23232428]
[1767579647207,92.9611,136.82,136.75,1.27990932]
[1767579647402,7.20427047,136.81,136.75,0.04758504]
[1767579649106,6.5821,136.8,136.75,0.04758504]
[1767579650002,7.20747415,136.8,136.75,0.04758504]
[1767579650897,7.20929221,136.79,136.71,1.23232428]
[1767579651101,86.38,136.78,136.71,1.23232428]
[1767579652308,0.04681597,136.76,136.71,1.23232428]
[1767579661818,0.68842327,136.76,136.69,14.74481005]
[1767579662017,2.12106411,136.75,136.69,1.19983659]
[1767579662219,1.47945681,136.73,136.69,1.19983659]
[1767579664917,0.04723168,136.72,136.69,1.19983659]
[1767579665715,0.04723168,136.72,136.67,1.19983659]
[1767579665916,0.04723168,136.72,136.66,14.9607954]
[1767579666115,0.04723168,136.72,136.66,16.16063199]
[1767579668322,0.04723168,136.72,136.67,1.19983659]
[1767579682242,0.71035305,136.72,136.65,1.19983659]
[1767579682446,1.47945681,136.71,136.65,1.19983659]
[1767579682635,1.47945681,136.71,136.61,13.54497346]
[1767579682636,1.2484474,136.7,136.61,13.54497346]
[1767579682837,1.2484474,136.7,136.6,15.02443027]
[1767579683233,1.47945681,136.69,136.6,15.02443027]
[1767579683633,1.2484474,136.7,136.6,15.02443027]
[1767579683837,0.04776098,136.66,136.6,15.02443027]
[1767579684039,0.04776098,136.66,136.6,21.61573027]
[1767579684237,0.04776098,136.66,136.6,8.07075681]
[1767579684637,0.04776098,136.66,136.61,1.19983659]
[1767579690753,0.04776098,136.66,136.56,116.10687346]
[1767579690754,1.47945681,136.65,136.59,1.30556069]
[1767579691060,1.25708085,136.66,136.59,1.30556069]
[1767579691252,2.68877668,136.65,136.59,1.30556069]
[1767579691655,0.05026471,136.64,136.59,1.30556069]
[1767579692946,2.68877668,136.63,136.56,1.30556069]
[1767579693864,0.04763711,136.61,136.56,1.30556069]
[1767579695572,1.20931987,136.6,136.54,1.30556069]
[1767579695767,2.7159609,136.59,136.49,1.47945681]
[1767579696056,1.23650409,136.55,136.44,102.6536]
[1767579696266,2.7159609,136.55,136.44,102.6536]
[1767579696564,2.7622426,136.55,136.45,1.47945681]
[1767579696766,2.7622426,136.55,136.45,8.07775681]
[1767579696956,2.7159609,136.55,136.45,8.07775681]
[1767579697159,1.23650409,136.54,136.44,6.5989]
[1767579697355,1.23650409,136.54,136.44,8.07835681]
[1767579697555,86.46,136.56,136.48,1.47945681]
[1767579697754,86.46,136.56,136.49,1.29353058]
[1767579698866,1.47945681,136.54,136.46,1.29353058]
[1767579699069,2.7159609,136.54,136.46,1.29353058]
[1767579699267,1.23650409,136.53,136.46,1.29353058]
[1767579699865,2.7159609,136.52,136.46,1.29353058]
[1767579701369,1.47945681,136.53,136.46,1.29353058]
[1767579701666,89.1959609,136.55,136.46,1.29353058]
[1767579702166,0.04611785,136.52,136.46,1.29353058]
[1767579702363,1.28262194,136.52,136.46,1.29353058]
[1767579703164,1.28262194,136.52,136.43,1.29353058]
[1767579703469,2.76207875,136.52,136.43,1.29353058]
[1767579703669,2.7159609,136.52,136.43,1.29353058]
[1767579703970,1.47945681,136.52,136.45,1.29353058]
[1767579704167,9.3104609,136.54,136.45,1.29353058]
[1767579704365,1.47945681,136.52,136.45,1.29353058]
[1767579705670,0.05584175,136.5,136.45,1.29353058]
[1767579708366,2.77180265,136.5,136.42,1.29353058]
[1767579708558,1.23650409,136.49,136.42,1.29353058]
[1767579708757,1.47945681,136.48,136.42,1.29353058]
[1767579709162,1.23650409,136.46,136.39,1.29353058]
[1767579709366,2.7159609,136.46,136.39,1.29353058]
[1767579709566,1.47945681,136.46,136.39,1.29353058]
[1767579710570,1.47945681,136.44,136.36,7.89643058]
[1767579710868,1.52982843,136.44,136.36,1.29353058]
[1767579712068,1.52982843,136.44,136.33,407.4896844]
[1767579712069,1.23650409,136.42,136.33,1.29353058]
[1767579712272,0.05037162,136.44,136.37,1.29353058]
[1767579712673,87.77650409,136.45,136.37,1.29353058]
[1767579713170,0.05181075,136.42,136.37,1.29353058]
[1767579714675,86.56,136.46,136.38,1.34191261]
[1767579715676,86.56,136.46,136.38,7.94381261]
[1767579716380,2.7159609,136.47,136.38,7.94381261]
[1767579716576,87.79650409,136.47,136.38,7.94381261]
[1767579716769,87.79650409,136.47,136.38,7.89543058]
[1767579717267,87.79650409,136.47,136.41,0.05370092]
[1767579718276,87.79650409,136.47,136.35,105.04101026]
[1767579718277,1.23650409,136.45,136.35,1.29353058]
[1767579718471,1.23650409,136.43,136.35,1.29353058]
[1767579719682,2.32271026,136.44,136.35,1.29353058]
[1767579719683,0.04820327,136.4,136.35,1.29353058]
[1767579722079,1.34612635,136.4,136.32,1.32616824]
[1767579722271,1.29792308,136.39,136.31,1.32616824]
[1767579722671,6.6025,136.38,136.31,1.32616824]
[1767579722882,87.87792308,136.37,136.29,1.32616824]
[1767579723073,1.29792308,136.35,136.28,16.61015956]
[1767579723277,1.29792308,136.35,136.26,1.32616824]
[1767579723780,7.90172308,136.35,136.26,1.32616824]
[1767579724079,7.90172308,136.35,136.23,205.6156]
[1767579724080,1.29792308,136.31,136.23,1.32616824]
[1767579724287,3.62063334,136.29,136.2,1.32616824]
[1767579724486,86.6,136.3,136.21,1.32616824]
[1767579724976,86.6,136.3,136.22,1.32616824]
[1767579725176,0.05429494,136.27,136.22,1.32616824]
[1767579726082,1.29792308,136.33,136.24,1.32616824]
[1767579726386,86.62,136.34,136.24,1.32616824]
[1767579726585,86.62,136.34,136.25,1.32616824]
[1767579727480,86.62,136.34,136.28,0.05612502]
[1767579729284,1.29792308,136.36,136.28,1.38229326]
[1767579730084,86.62,136.38,136.28,1.38229326]
[1767579730288,87.91792308,136.38,136.28,1.38229326]
[1767579730488,87.91792308,136.38,136.28,1.32616824]
[1767579730695,87.91792308,136.38,136.29,1.32616824]
[1767579730895,87.91792308,136.38,136.32,0.04666809]
[1767579731892,11.93088585,136.39,136.32,1.37283633]
[1767579732092,1.29792308,136.4,136.32,0.04666809]
[1767579732282,1.29792308,136.36,136.26,1.32616824]
[1767579732483,1.29792308,136.35,136.26,1.32616824]
[1767579732686,1.29792308,136.35,136.27,1.32616824]
[1767579733187,1.29792308,136.35,136.28,1.32616824]
[1767579733384,1.29792308,136.35,136.25,1.32616824]
[1767579734382,1.29792308,136.34,136.25,1.32616824]
[1767579735085,1.29792308,136.33,136.25,1.32616824]
[1767579735296,1.29792308,136.33,136.22,1.32616824]
[1767579735501,1.29792308,136.32,136.22,1.32616824]
[1767579736091,1.29792308,136.32,136.23,1.32616824]
[1767579736796,7.90172308,136.35,136.25,1.32616824]
[1767579738198,1.29792308,136.34,136.25,7.93436824]
[1767579740001,86.64,136.36,136.27,1.32616824]
[1767579740502,1.29792308,136.35,136.27,1.32616824]
[1767579741297,1.29792308,136.35,136.24,7.93496824]
[1767579741490,1.29792308,136.35,136.25,1.32616824]
[1767579742101,1.29792308,136.34,136.25,7.93426824]
[1767579744205,1.29792308,136.33,136.23,6.6093]
[1767579744394,1.29792308,136.33,136.22,1.32616824]
[1767579744695,1.29792308,136.32,136.22,1.32616824]
[1767579745203,102.7441,136.33,136.23,1.32616824]
[1767579745204,7.90382308,136.31,136.23,1.32616824]
[1767579747101,7.90382308,136.31,136.21,1.32616824]
[1767579747102,1.29792308,136.3,136.21,1.32616824]
[1767579747503,1.29792308,136.3,136.22,1.32616824]
[1767579751502,1.28090933,136.32,136.24,1.22119073]
[1767579751908,1.28090933,136.31,136.24,1.22119073]
[1767579752205,0.05325827,136.29,136.24,1.22119073]
[1767579753207,0.05325827,136.29,136.21,7.83129073]
[1767579755204,0.05325827,136.29,136.22,1.22119073]
[1767579756816,1.36663079,136.29,136.22,1.22119073]
[1767579758014,1.36663079,136.29,136.23,1.21720167]
[1767579758015,0.05325827,136.29,136.23,1.21720167]
[1767579758415,0.05325827,136.29,136.24,1.21720167]
[1767579759208,0.05325827,136.29,136.22,1.21720167]
[1767579759810,1.36663079,136.29,136.22,1.21720167]
[1767579762718,0.05325827,136.29,136.22,1.21720167]
[1767579763012,0.05325827,136.29,136.24,1.2672394]
[1767579763418,1.31337252,136.32,136.24,1.2672394]
[1767579766715,86.7,136.33,136.26,1.21720167]
[1767579766920,1.31337252,136.35,136.26,1.21720167]
[1767579767523,1.31337252,136.35,136.29,0.05557073]
[1767579768618,88.01337252,136.37,136.29,1.2727724]
[1767579769811,88.01337252,136.37,136.3,1.21720167]
[1767579770617,88.01337252,136.37,136.32,0.05452019]
[1767579771521,6.6013,136.4,136.32,0.05452019]
[1767579771522,1.31337252,136.39,136.32,0.05452019]
[1767579772621,7.91527252,136.39,136.32,0.05452019]
[1767579772823,1.31337252,136.39,136.32,1.27172186]
[1767579774221,86.68,136.4,136.32,1.27172186]
[1767579774823,86.68,136.4,136.32,7.87652186]
[1767579775916,86.68,136.4,136.33,1.21720167]
[1767579776318,7.91437252,136.41,136.33,1.21720167]
[1767579776521,1.31337252,136.4,136.33,1.21720167]
[1767579776714,1.31337252,136.4,136.35,0.05626285]
[1767579777318,2.80109055,136.42,136.35,0.05626285]
[1767579777628,2.80109055,136.42,136.35,1.27346452]
[1767579777629,1.31337252,136.42,136.35,1.27346452]
[1767579777822,1.31337252,136.42,136.35,1.21720167]
[1767579778122,1.31337252,136.42,136.37,0.04714968]
[1767579778828,1.31337252,136.4,136.33,6.6042]
[1767579779225,1.31337252,136.4,136.33,7.82140167]
[1767579780722,6.6004,136.42,136.34,1.25933539]
[1767579780927,86.66,136.41,136.34,1.25933539]
[1767579781226,1.20034621,136.4,136.33,6.6042]
[1767579781426,1.20034621,136.4,136.33,7.86353539]
[1767579781622,1.48771803,136.39,136.31,7.86463539]
[1767579781824,2.68806424,136.37,136.29,1.25933539]
[1767579782725,1.48771803,136.37,136.29,7.86553539]
[1767579782931,1.20034621,136.36,136.29,7.86553539]
[1767579783134,87.84034621,136.36,136.29,7.86553539]
[1767579784030,2.68806424,136.35,136.27,7.86673539]
[1767579784729,1.20034621,136.35,136.27,7.86673539]
[1767579785234,1.20034621,136.35,136.28,7.86613539]
[1767579785538,87.84034621,136.35,136.28,7.86613539]
[1767579786336,87.84034621,136.35,136.28,1.25933539]
[1767579787128,87.86034621,136.35,136.28,1.25933539]
[1767579787635,1.20034621,136.35,136.28,1.25933539]
[1767579787830,87.86034621,136.35,136.28,1.25933539]
[1767579790629,1.20034621,136.34,136.25,1.25933539]
[1767579791142,1.20034621,136.34,136.22,1.25933539]
[1767579791431,1.20034621,136.27,136.18,1.25933539]
[1767579791635,87.86034621,136.26,136.18,1.25933539]
[1767579792229,1.20034621,136.25,136.18,1.25933539]
[1767579794644,86.66,136.26,136.18,1.25933539]
[1767579795136,1.20034621,136.25,136.16,1.25933539]
[1767579797042,1.20034621,136.25,136.17,1.25933539]
[1767579800540,1.20034621,136.25,136.18,7.87113539]
[1767579801440,1.20034621,136.25,136.16,6.6126]
[1767579801636,1.20034621,136.25,136.15,1.25933539]
[1767579802243,1.20034621,136.24,136.15,1.25933539]